[Event "Late-Titled-Tuesday-Blitz-April-30-2024"]
[Site "Chess.com"]
[Date "2024.04.30"]
[Round "11"]
[White "bubeliang"]
[Black "Hikaru"]
[Result "1-0"]
[WhiteElo "2848"]
[BlackElo "3175"]
[TimeControl "180+1"]
[EndTime "16:05:08 PDT"]
[Termination "bubeliang won by checkmate"]

1. e4 {[%clk 0:03:00.9]} 1... a6 {[%clk 0:02:58.2]} 2. d4 {[%clk 0:02:59.4]}
2... c6 {[%clk 0:02:58.1]} 3. e5 {[%clk 0:02:49.9]} 3... d5 {[%clk 0:02:57.7]}
4. exd6 {[%clk 0:02:49.7]} 4... exd6 {[%clk 0:02:57.3]} 5. Nf3 {[%clk
0:02:44.8]} 5... d5 {[%clk 0:02:56]} 6. Bd3 {[%clk 0:02:45.3]} 6... Bd6 {[%clk
0:02:55.4]} 7. O-O {[%clk 0:02:45.1]} 7... Bg4 {[%clk 0:02:54.8]} 8. Re1+ {[%clk
0:02:43.5]} 8... Ne7 {[%clk 0:02:54.6]} 9. Nbd2 {[%clk 0:02:43.4]} 9... Qc7
{[%clk 0:02:50.9]} 10. h3 {[%clk 0:02:42.2]} 10... Bh5 {[%clk 0:02:51]} 11. c3
{[%clk 0:02:42.3]} 11... Nd7 {[%clk 0:02:50.6]} 12. a4 {[%clk 0:02:39.2]} 12...
a5 {[%clk 0:02:50]} 13. Qc2 {[%clk 0:02:34.5]} 13... Bg6 {[%clk 0:02:46.2]} 14.
c4 {[%clk 0:02:32.4]} 14... Kf8 {[%clk 0:02:30.4]} 15. c5 {[%clk 0:02:24.9]}
15... Bf4 {[%clk 0:02:29.5]} 16. Nf1 {[%clk 0:02:21.4]} 16... Bh5 {[%clk
0:02:08.2]} 17. Bxf4 {[%clk 0:02:01.8]} 17... Qxf4 {[%clk 0:02:09.1]} 18. Ne5
{[%clk 0:02:02.2]} 18... Rd8 {[%clk 0:01:39.7]} 19. Ng3 {[%clk 0:01:56.5]} 19...
Bg6 {[%clk 0:01:33]} 20. Qc3 {[%clk 0:01:45.1]} 20... Nxe5 {[%clk 0:01:26]} 21.
Rxe5 {[%clk 0:01:34.8]} 21... Bxd3 {[%clk 0:01:25.9]} 22. Qxd3 {[%clk
0:01:35.1]} 22... f6 {[%clk 0:01:01.5]} 23. Re2 {[%clk 0:01:30]} 23... g6 {[%clk
0:00:50.9]} 24. Rae1 {[%clk 0:01:14.3]} 24... Rd7 {[%clk 0:00:50.9]} 25. Re6
{[%clk 0:01:04.6]} 25... Kf7 {[%clk 0:00:37.6]} 26. Qe2 {[%clk 0:00:54.6]} 26...
Qc7 {[%clk 0:00:35.6]} 27. Qf3 {[%clk 0:00:44]} 27... Ng8 {[%clk 0:00:27]} 28.
Re8 {[%clk 0:00:40.6]} 28... Rd8 {[%clk 0:00:27.3]} 29. Qe3 {[%clk 0:00:34.5]}
29... Qd7 {[%clk 0:00:25.1]} 30. Rxd8 {[%clk 0:00:25.2]} 30... Qxd8 {[%clk
0:00:26]} 31. Qe6+ {[%clk 0:00:25.3]} 31... Kg7 {[%clk 0:00:26.4]} 32. Re3
{[%clk 0:00:19.1]} 32... h5 {[%clk 0:00:10.8]} 33. Rb3 {[%clk 0:00:13.3]} 33...
Qc7 {[%clk 0:00:10.8]} 34. Re3 {[%clk 0:00:12.8]} 34... h4 {[%clk 0:00:09.5]}
35. Ne2 {[%clk 0:00:11.2]} 35... Rh7 {[%clk 0:00:10]} 36. Qe8 {[%clk 0:00:09.6]}
36... Qf7 {[%clk 0:00:09.1]} 37. Qd8 {[%clk 0:00:08.6]} 37... Qf8 {[%clk
0:00:07.7]} 38. Qxa5 {[%clk 0:00:06.3]} 38... g5 {[%clk 0:00:05.6]} 39. Qb6
{[%clk 0:00:05]} 39... Kh8 {[%clk 0:00:06]} 40. a5 {[%clk 0:00:05.5]} 40... Nh6
{[%clk 0:00:06.5]} 41. a6 {[%clk 0:00:04]} 41... bxa6 {[%clk 0:00:06.1]} 42.
Qxc6 {[%clk 0:00:03.4]} 42... g4 {[%clk 0:00:04.8]} 43. Re8 {[%clk 0:00:03.4]}
43... Kg7 {[%clk 0:00:04.8]} 44. Rxf8 {[%clk 0:00:03.7]} 44... Kxf8 {[%clk
0:00:05.3]} 45. Qxf6+ {[%clk 0:00:04.2]} 45... Nf7 {[%clk 0:00:05.8]} 46. c6
{[%clk 0:00:04.4]} 46... Rh6 {[%clk 0:00:06.7]} 47. Qf5 {[%clk 0:00:03.5]} 47...
Rxc6 {[%clk 0:00:06.6]} 48. hxg4 {[%clk 0:00:03.1]} 48... Kg7 {[%clk 0:00:06.7]}
49. Nf4 {[%clk 0:00:03.6]} 49... Nh6 {[%clk 0:00:06.9]} 50. Nh5+ {[%clk
0:00:03.8]} 50... Kg8 {[%clk 0:00:07.1]} 51. Qg5+ {[%clk 0:00:04.3]} 51... Kf8
{[%clk 0:00:07.3]} 52. Qg7+ {[%clk 0:00:03.9]} 52... Ke8 {[%clk 0:00:07.9]} 53.
Nf6+ {[%clk 0:00:04.5]} 53... Kd8 {[%clk 0:00:08.6]} 54. Qd7# {[%clk 0:00:04.3]}
1-0

[Event "Late-Titled-Tuesday-Blitz-April-30-2024"]
[Site "Chess.com"]
[Date "2024.04.30"]
[Round "11"]
[White "kalinchick"]
[Black "canary2016"]
[Result "1-0"]
[WhiteElo "2482"]
[BlackElo "2274"]
[TimeControl "180+1"]
[EndTime "16:05:12 PDT"]
[Termination "kalinchick won by resignation"]

1. Nf3 {[%clk 0:02:55.3]} 1... Nf6 {[%clk 0:02:59.4]} 2. g3 {[%clk 0:02:54.9]}
2... g6 {[%clk 0:02:59.5]} 3. Bg2 {[%clk 0:02:55.8]} 3... Bg7 {[%clk 0:02:59.5]}
4. O-O {[%clk 0:02:56.7]} 4... O-O {[%clk 0:02:59.5]} 5. d3 {[%clk 0:02:56.6]}
5... d5 {[%clk 0:02:59.8]} 6. c3 {[%clk 0:02:56.1]} 6... c6 {[%clk 0:02:59.3]}
7. Nbd2 {[%clk 0:02:56.7]} 7... Bg4 {[%clk 0:02:53.6]} 8. h3 {[%clk 0:02:56]}
8... Bxf3 {[%clk 0:02:52.5]} 9. exf3 {[%clk 0:02:54.6]} 9... Nbd7 {[%clk
0:02:53.1]} 10. f4 {[%clk 0:02:54.7]} 10... e5 {[%clk 0:02:52.4]} 11. fxe5
{[%clk 0:02:52.6]} 11... Nxe5 {[%clk 0:02:52.3]} 12. Qc2 {[%clk 0:02:50.7]}
12... Re8 {[%clk 0:02:52.1]} 13. Nf3 {[%clk 0:02:48.2]} 13... Nxf3+ {[%clk
0:02:46.8]} 14. Bxf3 {[%clk 0:02:49.1]} 14... Qd7 {[%clk 0:02:45.6]} 15. Kg2
{[%clk 0:02:48.3]} 15... Re7 {[%clk 0:02:40.3]} 16. Be3 {[%clk 0:02:35.1]} 16...
Ne8 {[%clk 0:02:28.7]} 17. Bg5 {[%clk 0:02:21.2]} 17... Bf6 {[%clk 0:02:22.9]}
18. Bh6 {[%clk 0:02:14.5]} 18... Bg7 {[%clk 0:02:22]} 19. Bf4 {[%clk 0:02:05.1]}
19... Be5 {[%clk 0:02:18.7]} 20. Bg5 {[%clk 0:01:56.2]} 20... Bf6 {[%clk
0:02:18.6]} 21. Bxf6 {[%clk 0:01:54.7]} 21... Nxf6 {[%clk 0:02:18.4]} 22. Rae1
{[%clk 0:01:55.5]} 22... Rae8 {[%clk 0:02:17.1]} 23. Qd2 {[%clk 0:01:55.3]}
23... Qd6 {[%clk 0:02:04.4]} 24. Rxe7 {[%clk 0:01:53.9]} 24... Rxe7 {[%clk
0:02:04.1]} 25. Re1 {[%clk 0:01:53.6]} 25... Nd7 {[%clk 0:01:58.9]} 26. Rxe7
{[%clk 0:01:48.6]} 26... Qxe7 {[%clk 0:01:58.6]} 27. Qf4 {[%clk 0:01:47.5]}
27... Ne5 {[%clk 0:01:53.4]} 28. Be2 {[%clk 0:01:47.4]} 28... Kg7 {[%clk
0:01:51.4]} 29. Bf1 {[%clk 0:01:34]} 29... Qf6 {[%clk 0:01:49.8]} 30. Qxf6+
{[%clk 0:01:32.2]} 30... Kxf6 {[%clk 0:01:49.7]} 31. f4 {[%clk 0:01:32.8]} 31...
Nd7 {[%clk 0:01:49.1]} 32. Kf2 {[%clk 0:01:33.3]} 32... Ke6 {[%clk 0:01:47.9]}
33. Ke3 {[%clk 0:01:33.4]} 33... f5 {[%clk 0:01:44.2]} 34. c4 {[%clk 0:01:22.2]}
34... dxc4 {[%clk 0:01:40]} 35. dxc4 {[%clk 0:01:19.6]} 35... c5 {[%clk
0:01:40]} 36. Bg2 {[%clk 0:01:16.8]} 36... b6 {[%clk 0:01:39.9]} 37. Bd5+ {[%clk
0:01:13.1]} 37... Kd6 {[%clk 0:01:38.8]} 38. Bf3 {[%clk 0:01:07.2]} 38... Nf6
{[%clk 0:01:38.5]} 39. Kd3 {[%clk 0:01:03.7]} 39... Ke6 {[%clk 0:01:37.6]} 40.
a3 {[%clk 0:01:01.1]} 40... a5 {[%clk 0:01:32.4]} 41. Ke3 {[%clk 0:01:00.4]}
41... Kd6 {[%clk 0:01:27.7]} 42. g4 {[%clk 0:00:58.8]} 42... fxg4 {[%clk
0:01:26.5]} 43. hxg4 {[%clk 0:00:58.7]} 43... Nd7 {[%clk 0:01:23.7]} 44. g5
{[%clk 0:00:50.5]} 44... Nf8 {[%clk 0:01:23.5]} 45. Bd5 {[%clk 0:00:46.5]} 45...
Nd7 {[%clk 0:01:22.7]} 46. Bg8 {[%clk 0:00:45.3]} 46... Nf8 {[%clk 0:01:22.8]}
47. Ke4 {[%clk 0:00:44.9]} 47... a4 {[%clk 0:00:35.7]} 48. Bf7 {[%clk
0:00:41.4]} 48... Ke7 {[%clk 0:00:31.1]} 49. Bd5 {[%clk 0:00:37.4]} 49... Nd7
{[%clk 0:00:29.3]} 50. Bc6 {[%clk 0:00:33.6]} 50... Nf8 {[%clk 0:00:24.6]} 51.
Bxa4 {[%clk 0:00:24.3]} 51... Ne6 {[%clk 0:00:24.9]} 52. Bc6 {[%clk 0:00:19.4]}
52... Nd4 {[%clk 0:00:23.6]} 53. Bd5 {[%clk 0:00:19.9]} 53... Kf8 {[%clk
0:00:15.9]} 54. b4 {[%clk 0:00:19.8]} 54... Nc2 {[%clk 0:00:14]} 55. bxc5 {[%clk
0:00:20.1]} 55... bxc5 {[%clk 0:00:14.2]} 56. a4 {[%clk 0:00:20.5]} 56... Nb4
{[%clk 0:00:11.2]} 57. a5 {[%clk 0:00:20.1]} 57... Kg7 {[%clk 0:00:06.8]} 58.
Bb7 {[%clk 0:00:19.4]} 58... Kf8 {[%clk 0:00:05]} 59. a6 {[%clk 0:00:19.3]}
59... Nxa6 {[%clk 0:00:04.4]} 60. Bxa6 {[%clk 0:00:20.2]} 60... Ke7 {[%clk
0:00:04.7]} 61. Kd5 {[%clk 0:00:19.6]} 1-0

[Event "Late-Titled-Tuesday-Blitz-April-30-2024"]
[Site "Chess.com"]
[Date "2024.04.30"]
[Round "11"]
[White "rdarruda"]
[Black "BardArtem"]
[Result "0-1"]
[WhiteElo "2551"]
[BlackElo "2776"]
[TimeControl "180+1"]
[EndTime "16:05:18 PDT"]
[Termination "BardArtem won on time"]

1. d4 {[%clk 0:02:57.2]} 1... d5 {[%clk 0:02:57.9]} 2. Nf3 {[%clk 0:02:56.7]}
2... Nf6 {[%clk 0:02:57.9]} 3. c4 {[%clk 0:02:56.4]} 3... e6 {[%clk 0:02:58.2]}
4. e3 {[%clk 0:02:56.5]} 4... h6 {[%clk 0:02:56.2]} 5. Nc3 {[%clk 0:02:56.5]}
5... Bd6 {[%clk 0:02:56.6]} 6. Bd3 {[%clk 0:02:56.2]} 6... dxc4 {[%clk
0:02:56.7]} 7. Bxc4 {[%clk 0:02:55.8]} 7... O-O {[%clk 0:02:57.2]} 8. e4 {[%clk
0:02:55.8]} 8... Bb4 {[%clk 0:02:52.5]} 9. e5 {[%clk 0:02:54.1]} 9... Nd5 {[%clk
0:02:52.7]} 10. Bd2 {[%clk 0:02:53.7]} 10... Bxc3 {[%clk 0:02:50.5]} 11. bxc3
{[%clk 0:02:54.6]} 11... b6 {[%clk 0:02:48.3]} 12. O-O {[%clk 0:02:53.4]} 12...
Ba6 {[%clk 0:02:48.5]} 13. Bxa6 {[%clk 0:02:50.8]} 13... Nxa6 {[%clk 0:02:49.4]}
14. Qe2 {[%clk 0:02:49.8]} 14... Nb8 {[%clk 0:02:48.9]} 15. c4 {[%clk
0:02:48.7]} 15... Ne7 {[%clk 0:02:48.5]} 16. Qe4 {[%clk 0:02:48.6]} 16... Nbc6
{[%clk 0:02:33.9]} 17. Rad1 {[%clk 0:02:45.2]} 17... Qd7 {[%clk 0:02:33.9]} 18.
Bc3 {[%clk 0:02:44.3]} 18... Rad8 {[%clk 0:02:33.4]} 19. Rd2 {[%clk 0:02:39.3]}
19... Nb8 {[%clk 0:02:25.9]} 20. Rfd1 {[%clk 0:02:34.1]} 20... Qc6 {[%clk
0:02:26]} 21. Qe2 {[%clk 0:02:23.2]} 21... Rd7 {[%clk 0:02:19.6]} 22. Bb4 {[%clk
0:02:15.2]} 22... Rfd8 {[%clk 0:02:17.1]} 23. Bxe7 {[%clk 0:02:12]} 23... Rxe7
{[%clk 0:02:18]} 24. d5 {[%clk 0:02:12.3]} 24... exd5 {[%clk 0:02:17.9]} 25.
cxd5 {[%clk 0:02:13.2]} 25... Qe8 {[%clk 0:02:11.6]} 26. h3 {[%clk 0:02:10.4]}
26... Nd7 {[%clk 0:02:10]} 27. d6 {[%clk 0:02:00.2]} 27... cxd6 {[%clk
0:01:59.9]} 28. Rxd6 {[%clk 0:02:01.1]} 28... Rc8 {[%clk 0:02:00.5]} 29. R1d5
{[%clk 0:01:41.7]} 29... Nc5 {[%clk 0:01:47.9]} 30. Qd1 {[%clk 0:01:13]} 30...
Ne6 {[%clk 0:01:43.3]} 31. Rd7 {[%clk 0:01:12.6]} 31... Rxd7 {[%clk 0:01:39.9]}
32. Rxd7 {[%clk 0:01:13.5]} 32... Rd8 {[%clk 0:01:40.6]} 33. Rxd8 {[%clk
0:01:11.4]} 33... Qxd8 {[%clk 0:01:41.5]} 34. Qa4 {[%clk 0:01:05.9]} 34... Qc7
{[%clk 0:01:36.3]} 35. Qe4 {[%clk 0:01:02.7]} 35... Qc1+ {[%clk 0:01:35.6]} 36.
Ne1 {[%clk 0:00:55.3]} 36... Nc5 {[%clk 0:01:35.4]} 37. Qe3 {[%clk 0:00:50.4]}
37... Qxe3 {[%clk 0:01:32.6]} 38. fxe3 {[%clk 0:00:49.2]} 38... Nd7 {[%clk
0:01:19.1]} 39. Nf3 {[%clk 0:00:43.9]} 39... Kf8 {[%clk 0:01:19.6]} 40. Kf2
{[%clk 0:00:30.5]} 40... Ke7 {[%clk 0:01:19.1]} 41. Ke2 {[%clk 0:00:30.5]} 41...
Nc5 {[%clk 0:00:55.1]} 42. Nd4 {[%clk 0:00:29]} 42... Kd7 {[%clk 0:00:53.8]} 43.
Kf3 {[%clk 0:00:27.9]} 43... a6 {[%clk 0:00:49.6]} 44. h4 {[%clk 0:00:27.4]}
44... h5 {[%clk 0:00:47.6]} 45. g4 {[%clk 0:00:26.4]} 45... hxg4+ {[%clk
0:00:47.4]} 46. Kxg4 {[%clk 0:00:27.3]} 46... b5 {[%clk 0:00:48]} 47. Kf3 {[%clk
0:00:26.2]} 47... b4 {[%clk 0:00:47.5]} 48. Ke2 {[%clk 0:00:24.9]} 48... a5
{[%clk 0:00:47.8]} 49. Kd2 {[%clk 0:00:24.7]} 49... g6 {[%clk 0:00:46]} 50. Kc2
{[%clk 0:00:24]} 50... a4 {[%clk 0:00:45.2]} 51. Kd2 {[%clk 0:00:22.7]} 51... b3
{[%clk 0:00:43.9]} 52. a3 {[%clk 0:00:22.9]} 52... Ne6 {[%clk 0:00:39.3]} 53.
Nb5 {[%clk 0:00:21.8]} 53... Kc6 {[%clk 0:00:39.1]} 54. Nc3 {[%clk 0:00:21.7]}
54... Nc5 {[%clk 0:00:38.8]} 55. Ke2 {[%clk 0:00:18.8]} 55... Kd7 {[%clk
0:00:38.8]} 56. Kd2 {[%clk 0:00:16.2]} 56... Ke6 {[%clk 0:00:38.7]} 57. Nb5
{[%clk 0:00:09.3]} 57... Kxe5 {[%clk 0:00:36.8]} 58. Kc3 {[%clk 0:00:10.2]}
58... f6 {[%clk 0:00:26.2]} 59. Kb4 {[%clk 0:00:10.1]} 59... Ne4 {[%clk
0:00:22.4]} 0-1

[Event "Late-Titled-Tuesday-Blitz-April-30-2024"]
[Site "Chess.com"]
[Date "2024.04.30"]
[Round "11"]
[White "DominguezOnYoutube"]
[Black "BogdanDeac"]
[Result "0-1"]
[WhiteElo "2970"]
[BlackElo "3090"]
[TimeControl "180+1"]
[EndTime "16:05:21 PDT"]
[Termination "BogdanDeac won by resignation"]

1. e4 {[%clk 0:03:00.9]} 1... e5 {[%clk 0:02:59.5]} 2. Nf3 {[%clk 0:03:01.2]}
2... Nc6 {[%clk 0:03:00.1]} 3. Bb5 {[%clk 0:03:01.1]} 3... a6 {[%clk 0:03:00.5]}
4. Ba4 {[%clk 0:03:00.5]} 4... Nf6 {[%clk 0:03:00.9]} 5. O-O {[%clk 0:03:00.9]}
5... Bc5 {[%clk 0:03:00.6]} 6. c3 {[%clk 0:02:59.2]} 6... b5 {[%clk 0:03:00.9]}
7. Bb3 {[%clk 0:02:59.1]} 7... d6 {[%clk 0:03:01.1]} 8. d4 {[%clk 0:02:55.4]}
8... Bb6 {[%clk 0:03:01.4]} 9. Re1 {[%clk 0:02:55.5]} 9... h6 {[%clk 0:02:55.9]}
10. Be3 {[%clk 0:02:51]} 10... O-O {[%clk 0:02:51]} 11. h3 {[%clk 0:02:47.3]}
11... Re8 {[%clk 0:02:49.5]} 12. Nbd2 {[%clk 0:02:46.9]} 12... Rb8 {[%clk
0:02:47.4]} 13. a3 {[%clk 0:02:43.2]} 13... Na5 {[%clk 0:02:43.8]} 14. Ba2
{[%clk 0:02:29.1]} 14... c5 {[%clk 0:02:35.4]} 15. b4 {[%clk 0:02:25.2]} 15...
cxd4 {[%clk 0:02:35.2]} 16. cxd4 {[%clk 0:02:24.9]} 16... Nc6 {[%clk 0:02:35]}
17. dxe5 {[%clk 0:02:15.2]} 17... dxe5 {[%clk 0:01:57.7]} 18. Rc1 {[%clk
0:02:11.6]} 18... Bd7 {[%clk 0:01:57.6]} 19. Nb3 {[%clk 0:02:00.5]} 19... Bxe3
{[%clk 0:00:27]} 20. Rxe3 {[%clk 0:02:01.4]} 20... Be6 {[%clk 0:00:21.4]} 21.
Qc2 {[%clk 0:01:23.5]} 21... Rc8 {[%clk 0:00:14.8]} 22. Nc5 {[%clk 0:01:23.5]}
22... Bxa2 {[%clk 0:00:13.7]} 23. Qxa2 {[%clk 0:01:23.1]} 23... a5 {[%clk
0:00:11.9]} 24. Rd3 {[%clk 0:00:37.3]} 24... Qe7 {[%clk 0:00:11.5]} 25. Qd2
{[%clk 0:00:32.1]} 25... axb4 {[%clk 0:00:11.2]} 26. axb4 {[%clk 0:00:32]} 26...
Red8 {[%clk 0:00:11.6]} 27. Rxd8+ {[%clk 0:00:08.5]} 27... Rxd8 {[%clk
0:00:11.8]} 28. Qc3 {[%clk 0:00:07.7]} 28... Rc8 {[%clk 0:00:08.1]} 29. Qd2
{[%clk 0:00:05.8]} 29... Rd8 {[%clk 0:00:05.8]} 30. Qc3 {[%clk 0:00:05.6]} 30...
Rc8 {[%clk 0:00:06]} 31. Qd2 {[%clk 0:00:03.3]} 31... Ne8 {[%clk 0:00:06.2]} 32.
Qb2 {[%clk 0:00:02.3]} 32... Nd6 {[%clk 0:00:05.8]} 33. Nd3 {[%clk 0:00:02.3]}
33... Nc4 {[%clk 0:00:05.9]} 34. Qc3 {[%clk 0:00:02.1]} 34... f6 {[%clk
0:00:06.1]} 35. Nc5 {[%clk 0:00:02.2]} 35... Nxb4 {[%clk 0:00:05.8]} 36. Qxb4
{[%clk 0:00:02.1]} 36... Qxc5 {[%clk 0:00:06.1]} 37. Qb3 {[%clk 0:00:02.6]}
37... Kh7 {[%clk 0:00:06.3]} 38. Rb1 {[%clk 0:00:03]} 38... Rb8 {[%clk
0:00:06.1]} 39. Nh4 {[%clk 0:00:03.1]} 39... Nd2 {[%clk 0:00:04.4]} 40. Qf7
{[%clk 0:00:03.1]} 40... Nxb1 {[%clk 0:00:04.5]} 41. Qg6+ {[%clk 0:00:03.2]}
41... Kh8 {[%clk 0:00:04.7]} 42. Qf5 {[%clk 0:00:03.1]} 42... Qd6 {[%clk
0:00:03.8]} 43. Qg6 {[%clk 0:00:02.1]} 43... Qd7 {[%clk 0:00:03.6]} 44. Nf5
{[%clk 0:00:02.1]} 44... Rf8 {[%clk 0:00:03.9]} 45. Qh5 {[%clk 0:00:01.7]} 45...
Qf7 {[%clk 0:00:03.8]} 46. Qg4 {[%clk 0:00:00.7]} 46... Nc3 {[%clk 0:00:04]} 47.
Nh4 {[%clk 0:00:01.2]} 47... Kg8 {[%clk 0:00:03.8]} 48. Qf5 {[%clk 0:00:01.7]}
48... b4 {[%clk 0:00:03.7]} 49. Ng6 {[%clk 0:00:02.2]} 49... Re8 {[%clk
0:00:04.2]} 50. Nh4 {[%clk 0:00:02.5]} 50... b3 {[%clk 0:00:04.6]} 51. Qg4
{[%clk 0:00:02.9]} 51... b2 {[%clk 0:00:04.9]} 52. Nf5 {[%clk 0:00:03.8]} 52...
b1=Q+ {[%clk 0:00:05.3]} 53. Kh2 {[%clk 0:00:04.7]} 53... Qc1 {[%clk 0:00:05.8]}
54. g3 {[%clk 0:00:03.8]} 54... Qd2 {[%clk 0:00:05.8]} 55. Kg2 {[%clk
0:00:03.9]} 55... Nd1 {[%clk 0:00:05.6]} 56. Qf3 {[%clk 0:00:04.1]} 56... Qxf2+
{[%clk 0:00:05.7]} 57. Qxf2 {[%clk 0:00:04.3]} 57... Nxf2 {[%clk 0:00:06.6]} 58.
Kxf2 {[%clk 0:00:05]} 58... Rd8 {[%clk 0:00:07.2]} 0-1

[Event "Late-Titled-Tuesday-Blitz-April-30-2024"]
[Site "Chess.com"]
[Date "2024.04.30"]
[Round "11"]
[White "laskakid"]
[Black "JonasEilenberg"]
[Result "0-1"]
[WhiteElo "2413"]
[BlackElo "2563"]
[TimeControl "180+1"]
[EndTime "16:05:21 PDT"]
[Termination "JonasEilenberg won on time"]

1. e4 {[%clk 0:03:00.9]} 1... c5 {[%clk 0:03:00.2]} 2. Nf3 {[%clk 0:03:00.9]}
2... Nc6 {[%clk 0:03:00.8]} 3. d3 {[%clk 0:03:00.8]} 3... d6 {[%clk 0:02:53.9]}
4. g3 {[%clk 0:03:00.4]} 4... g6 {[%clk 0:02:54.2]} 5. Bg2 {[%clk 0:03:00.5]}
5... Bg7 {[%clk 0:02:54.9]} 6. O-O {[%clk 0:03:00.5]} 6... e5 {[%clk 0:02:55.5]}
7. Nc3 {[%clk 0:02:59.5]} 7... Nge7 {[%clk 0:02:55.5]} 8. Nd2 {[%clk 0:02:58.9]}
8... O-O {[%clk 0:02:55.8]} 9. Nc4 {[%clk 0:02:59.1]} 9... Rb8 {[%clk 0:02:49]}
10. a4 {[%clk 0:02:58]} 10... Nd4 {[%clk 0:02:48.1]} 11. f4 {[%clk 0:02:51.6]}
11... Be6 {[%clk 0:02:43.7]} 12. Nd5 {[%clk 0:02:50.1]} 12... exf4 {[%clk
0:02:21]} 13. Bxf4 {[%clk 0:02:44]} 13... Bxd5 {[%clk 0:01:36.7]} 14. exd5
{[%clk 0:02:43.3]} 14... Nc8 {[%clk 0:01:37.6]} 15. Bh3 {[%clk 0:02:33.3]} 15...
Nf5 {[%clk 0:01:23.5]} 16. Bxf5 {[%clk 0:02:16.9]} 16... gxf5 {[%clk 0:01:24.4]}
17. Qh5 {[%clk 0:02:15.8]} 17... Qf6 {[%clk 0:01:24.7]} 18. c3 {[%clk
0:02:08.2]} 18... Qg6 {[%clk 0:01:23.8]} 19. Qxg6 {[%clk 0:01:58.7]} 19... fxg6
{[%clk 0:01:24.1]} 20. Nxd6 {[%clk 0:01:59]} 20... Rd8 {[%clk 0:01:24.7]} 21.
Nb5 {[%clk 0:01:54.6]} 21... Ra8 {[%clk 0:01:17]} 22. Nc7 {[%clk 0:01:54.8]}
22... Rb8 {[%clk 0:01:17.4]} 23. Ne6 {[%clk 0:01:55.1]} 23... Nb6 {[%clk
0:01:14.6]} 24. Nxd8 {[%clk 0:01:41]} 24... Rxd8 {[%clk 0:01:13.6]} 25. d6
{[%clk 0:01:40.8]} 25... Nd5 {[%clk 0:01:11.7]} 26. Rae1 {[%clk 0:01:31.4]}
26... Kf7 {[%clk 0:01:11]} 27. Be5 {[%clk 0:01:22.2]} 27... Bxe5 {[%clk
0:01:08.7]} 28. Rxe5 {[%clk 0:01:22.3]} 28... Rxd6 {[%clk 0:01:09.6]} 29. Rfe1
{[%clk 0:01:21.3]} 29... b6 {[%clk 0:01:02.1]} 30. Kf2 {[%clk 0:01:06.9]} 30...
Rd7 {[%clk 0:01:02]} 31. Kf3 {[%clk 0:01:04.4]} 31... Nf6 {[%clk 0:01:00.7]} 32.
Rd1 {[%clk 0:00:44.8]} 32... Ng4 {[%clk 0:01:00.1]} 33. Re2 {[%clk 0:00:43.7]}
33... Nf6 {[%clk 0:01:00.7]} 34. d4 {[%clk 0:00:42.7]} 34... cxd4 {[%clk
0:01:00.8]} 35. Rxd4 {[%clk 0:00:42.7]} 35... Rc7 {[%clk 0:00:55.4]} 36. h3
{[%clk 0:00:41]} 36... Ne4 {[%clk 0:00:48.9]} 37. g4 {[%clk 0:00:38.4]} 37...
Ng5+ {[%clk 0:00:44.3]} 38. Kg3 {[%clk 0:00:38.3]} 38... Ne4+ {[%clk 0:00:34.5]}
39. Kf4 {[%clk 0:00:36.3]} 39... Nc5 {[%clk 0:00:20.4]} 40. gxf5 {[%clk
0:00:32.3]} 40... gxf5 {[%clk 0:00:21.3]} 41. Kxf5 {[%clk 0:00:31.3]} 41... Rc6
{[%clk 0:00:21.9]} 42. b4 {[%clk 0:00:24.6]} 42... Rf6+ {[%clk 0:00:21.3]} 43.
Kg4 {[%clk 0:00:22.8]} 43... Rg6+ {[%clk 0:00:19.1]} 44. Kf3 {[%clk 0:00:21.1]}
44... Nxa4 {[%clk 0:00:16.5]} 45. Rd7+ {[%clk 0:00:19.1]} 45... Kf8 {[%clk
0:00:13.8]} 46. Rxa7 {[%clk 0:00:16.2]} 46... Nxc3 {[%clk 0:00:14]} 47. Rc2
{[%clk 0:00:15]} 47... Rf6+ {[%clk 0:00:11.1]} 48. Kg4 {[%clk 0:00:12.6]} 48...
Rc6 {[%clk 0:00:10.6]} 49. Ra3 {[%clk 0:00:10.4]} 49... Rc4+ {[%clk 0:00:05.1]}
50. Kh5 {[%clk 0:00:08.3]} 50... Rxb4 {[%clk 0:00:02.1]} 51. Raxc3 {[%clk
0:00:07.9]} 51... Rb5+ {[%clk 0:00:02.9]} 52. Kh6 {[%clk 0:00:07.3]} 52... Rb4
{[%clk 0:00:03.8]} 53. Rc8+ {[%clk 0:00:02.8]} 53... Kf7 {[%clk 0:00:04.3]} 54.
R2c7+ {[%clk 0:00:02.7]} 54... Kf6 {[%clk 0:00:04.9]} 55. Kxh7 {[%clk
0:00:00.9]} 55... Rh4+ {[%clk 0:00:05]} 56. Kg8 {[%clk 0:00:01.4]} 56... Rxh3
{[%clk 0:00:05.9]} 0-1